fUSD/lending_fUSD_20241001
["ID","MTS","AMOUNT","RATE_DAILY","PERIOD"]
[339637125,1727781038046,-4100.0,0.00010246,2]
[339637126,1727781038058,-1999.04775051,0.00010246,2]
[339637127,1727781038069,-1001.37170655,0.00010246,2]
[339637128,1727781038080,-583.3042729,0.00010246,2]
[339637129,1727781038090,-334.2,0.00010325,2]
[339637130,1727781038100,-1094.76,0.00010603,2]
[339637131,1727781038109,-897.00146035,0.00010734,2]
[339637132,1727781038121,-250.99853965,0.00010734,2]
[339637133,1727781038131,-150.0,0.00010734,2]
[339637134,1727781038140,-5873.0,0.00010734,2]
[339637135,1727781038149,-13504.0,0.00010734,2]
[339637136,1727781038158,-4595.0,0.000109,2]
[339637137,1727781038168,-296.0916428,0.000109,2]
[339637138,1727781038177,-210.943,0.00010911,2]
[339637139,1727781038187,-163.92,0.00010959,2]
[339637140,1727781038197,-150.0,0.00010997,2]
[339637141,1727781038207,-7916.0977498,0.00010998,2]
[339637142,1727781038216,-77615.9290413,0.00010998,2]
[339637143,1727781038226,-1000.0,0.00010999,2]
[339637144,1727781038235,-16716.39335295,0.00011,2]
[339637145,1727781038244,-229.876,0.00011,2]
[339637146,1727781038254,-262.872,0.00011,2]
[339637147,1727781038263,-625.0,0.00011,2]
[339637148,1727781038273,-1296.0,0.00011,2]
[339637149,1727781038282,-1264.0,0.00011,2]
[339637150,1727781038291,-449.0,0.00011,2]
[339637151,1727781038301,-933.0,0.00011,2]
[339637152,1727781038310,-559.0,0.00011,2]
[339637153,1727781038319,-150.0,0.00011,2]
[339637154,1727781038328,-810.0,0.00011,2]
[339637155,1727781038337,-1905.0,0.00011,2]
[339637156,1727781038346,-554.0,0.00011,2]
[339637158,1727781038355,-807.0,0.00011,2]
[339637159,1727781038365,-3350.0,0.00011,2]
[339637160,1727781038374,-1910.0,0.00011,2]
[339637161,1727781038383,-337426.00936503,0.00011,2]
[339637163,1727781039906,-18241.58187355,0.00011,2]
[339637164,1727781039917,-1065.9793395,0.00011,2]
[339637165,1727781039929,-11154.02902372,0.00011,2]
[339637166,1727781039940,-388.52572766,0.00011,2]
[339637167,1727781039951,-2933.56225702,0.00011,2]
[339637168,1727781039961,-3107.85901998,0.00011,2]
[339637169,1727781039972,-1710.66428866,0.00011,2]
[339637170,1727781039983,-14402.19677375,0.00011,2]
[339637171,1727781039994,-1490.48160631,0.00011,2]
[339637172,1727781040005,-2010.28397399,0.00011,2]
[339637173,1727781040017,-86636.95704153,0.00011,2]
[339637174,1727781040027,-4010.853084,0.00011,2]
[339637175,1727781040040,-33886.05425213,0.00011,2]
[339637176,1727781040051,-533.1,0.00011,2]
[339637177,1727781040061,-18760.5019774,0.00011,2]
[339637178,1727781040072,-535.38437107,0.00011,2]
[339637179,1727781040084,-7999.92109639,0.00011,2]
[339637180,1727781040095,-703.655,0.00011,2]
[339637181,1727781040106,-94028.51986877,0.00011,2]
[339637182,1727781040117,-2098.83755617,0.00011,2]
[339637183,1727781040128,-1633.56266826,0.00011,2]
[339637184,1727781040139,-475.21517826,0.00011,2]
[339637185,1727781040150,-298.57312534,0.00011,2]
[339637186,1727781040161,-160715.38281738,0.00011,2]
[339637187,1727781040172,-256.89893274,0.00011,2]
[339637188,1727781040183,-2513.61810119,0.00011,2]
[339637189,1727781040194,-312.3160075,0.00011,2]
[339637190,1727781040205,-4307.56043718,0.00011,2]
[339637191,1727781040215,-9203.11958714,0.00011,2]
[339637192,1727781040226,-670.7,0.00011,2]
[339637193,1727781040237,-4355.31238879,0.00011,2]
[339637215,1727781043439,-1044.82062561,0.00010734,2]
[339637216,1727781043451,-37.17937439,0.00010734,2]
[339637217,1727781043461,-33150.89458028,0.00011,2]
[339637218,1727781045770,-59216.90124761,0.00011,2]
[339637219,1727781045780,-252.8,0.00011,2]
[339637220,1727781045790,-167421.56016453,0.00011,2]
[339637221,1727781045915,-1740.74654837,0.00011,2]
[339637222,1727781045960,-402.04,0.00011,2]
[339637223,1727781046008,-31983.52413414,0.00011,2]
[339637226,1727781066495,223.02995066,0.00021999,120]
[339637227,1727781196237,154.47,0.000149,31]
[339637228,1727781196291,154.47,0.000149,31]
[339637229,1727781196346,154.47,0.000149,31]
[339637230,1727781196410,154.47,0.000149,31]
[339637231,1727781196474,154.47,0.000149,31]
[339637232,1727781196534,154.47,0.000149,31]
[339637233,1727781196595,154.47,0.000149,31]
[339637234,1727781196649,154.47,0.000149,31]
[339637235,1727781301114,150.0,9.724e-05,2]
[339637236,1727781301140,150.0,9.724e-05,2]
[339637237,1727781301163,150.0,9.724e-05,2]
[339637238,1727781301185,150.0,9.724e-05,2]
[339637239,1727781301209,150.0,9.724e-05,2]
[339637240,1727781301231,150.0,9.724e-05,2]
[339637241,1727781301253,139.3,9.724e-05,2]
[339637242,1727781315722,259.136368,0.00021999,120]
[339637243,1727781316015,259.136368,0.00021999,120]
[339637244,1727781316298,259.136368,0.00021999,120]
[339637245,1727781316988,259.136368,0.00021999,120]
[339637246,1727781317319,259.136368,0.00021999,120]
[339637247,1727781317626,259.136368,0.00021999,120]
[339637248,1727781317931,259.136368,0.00021999,120]
[339637249,1727781318217,259.136368,0.00021999,120]
[339637250,1727781318550,259.136368,0.00021999,120]
[339637251,1727781320920,171.381617,0.00021999,120]
[339637252,1727781321226,171.381617,0.00021999,120]
[339637253,1727781321511,171.381617,0.00021999,120]
[339637254,1727781321815,171.381617,0.00021999,120]
[339637255,1727781322129,171.381617,0.00021999,120]
[339637256,1727781322427,171.381617,0.00021999,120]
[339637257,1727781322747,171.381617,0.00021999,120]
[339637258,1727781547801,257.91018103,9.968e-05,2]
[339637259,1727781679426,150.0,0.0001,2]
[339637260,1727781679448,150.0,0.0001,2]
[339637261,1727781679470,150.0,0.0001,2]
[339637262,1727781679492,150.0,0.0001,2]
[339637263,1727781679513,142.93,0.0001,2]
[339637264,1727781739317,184.110415,0.00021999,120]
[339637265,1727781739625,184.110415,0.00021999,120]
[339637266,1727781739929,184.110415,0.00021999,120]
[339637268,1727781798239,154.57,0.000149,31]
[339637269,1727781798312,154.57,0.000149,31]
[339637270,1727781798372,154.57,0.000149,31]
[339637271,1727781798420,154.57,0.000149,31]
[339637272,1727781798494,154.57,0.000149,31]
[339637273,1727781798558,154.57,0.000149,31]
[339637274,1727781798607,154.57,0.000149,31]
[339637275,1727781878355,150.0,0.00010002,2]
[339637276,1727781973495,150.0,8.325e-05,2]
[339637277,1727781973518,150.0,8.325e-05,2]
[339637278,1727781973540,150.0,8.325e-05,2]
[339637279,1727781973562,150.0,8.325e-05,2]
[339637280,1727781973587,387.33,8.325e-05,2]
[339637303,1727782231973,-600.0,0.00010068,2]
[339637304,1727782231983,-700.0,0.00010068,2]
[339637305,1727782231992,-250.0,0.00010219,2]
[339637306,1727782232002,-353.57,0.0001023,2]
[339637307,1727782232011,-1042.26283594,0.0001023,2]
[339637308,1727782232022,-424.46539083,0.0001023,2]
[339637309,1727782232058,-860.79013955,0.0001023,2]
[339637310,1727782232067,-250.0,0.00010264,2]
[339637311,1727782232076,-987.33,0.00010589,2]
[339637312,1727782232086,-750.53,0.0001089,2]
[339637313,1727782232099,-313.0622,0.00010897,2]
[339637314,1727782232108,-185.13319123,0.00010899,2]
[339637315,1727782232118,-185.13319122,0.00010899,2]
[339637316,1727782232127,-185.13319122,0.00010899,2]
[339637317,1727782232137,-185.13319122,0.000109,2]
[339637318,1727782232147,-168.755,0.00010916,2]
[339637319,1727782232156,-100.09374926,0.00010996,2]
[339637320,1727782232185,-49.90625074,0.00010996,2]
[339637321,1727782232195,-506.36045403,0.00010997,2]
[339637322,1727782232302,-3169.12221538,0.00010997,2]
[339637323,1727782238377,-664.04385233,0.00010997,2]
[339637324,1727782238388,-2820.98483153,0.00010997,2]
[339637325,1727782238400,-12527.12144053,0.00010997,2]
[339637338,1727782240140,-659.77499999,0.00010997,2]
[339637345,1727782243522,-2290.5658182,0.00010997,2]
[339637346,1727782243533,-506.49216703,0.00010997,2]
[339637347,1727782243656,-68353.32737623,0.00010997,2]
[339637987,1727782311528,150.0,0.0001,2]
[339637988,1727782311551,100.0,0.0001,2]
[339637989,1727782379094,150.0,0.0001,2]
[339637990,1727782636776,150.0,9.724e-05,2]
[339637991,1727782636799,150.0,9.724e-05,2]
[339637992,1727782636822,150.0,9.724e-05,2]
[339637993,1727782636845,150.0,9.724e-05,2]
[339637994,1727782636871,150.0,9.724e-05,2]
[339637995,1727782636894,150.0,9.724e-05,2]
[339637996,1727782636918,68.19,9.724e-05,2]
[339637997,1727782737065,-600.0,0.00010068,2]
[339637998,1727782737089,-600.0,0.00010068,2]
[339637999,1727782737113,-222.58899851,0.00010068,2]
[339638000,1727782737134,-261.98,0.00010238,2]
[339638001,1727782737158,-558.01,0.00010238,2]
[339638002,1727782737181,-250.0,0.00010241,2]
[339638003,1727782737201,-704.02,0.00010332,2]
[339638004,1727782737223,-230.1937,0.00010897,2]
[339638005,1727782737244,-179.852,0.00010897,2]
[339638006,1727782737266,-512.8343,0.00010897,2]
[339638007,1727782737286,-191.8485,0.00010897,2]
[339638008,1727782737308,-2803.67250149,0.00010897,2]
[339638009,1727783147695,194.131948,0.00021999,120]
[339638010,1727783201492,150.0,8.219e-05,2]
[339638011,1727783201516,150.0,8.219e-05,2]
[339638012,1727783201537,150.0,8.219e-05,2]
[339638013,1727783201559,150.0,8.219e-05,2]
[339638014,1727783201581,150.0,8.219e-05,2]
[339638015,1727783201603,150.0,8.219e-05,2]
[339638016,1727783201625,27.28,8.219e-05,2]
[339638017,1727783438339,-250.0,0.00010058,2]
[339638018,1727783438348,-150.0,0.00010059,2]
[339638019,1727783438358,-172.0,0.0001006,2]
[339638020,1727783438367,-293.10654628,0.00010068,2]
[339638021,1727783438378,-306.89345372,0.00010068,2]
[339638022,1727783438387,-141.99865307,0.00010111,2]
[339638023,1727783438398,-108.00134693,0.00010111,2]
[339638024,1727783438407,-584.10700952,0.00010171,2]
[339638027,1727783440282,-365.83299048,0.00010171,2]
[339638028,1727783440292,-497.3,0.00010196,2]
[339638029,1727783440302,-261.98,0.00010219,2]
[339638030,1727783440312,-927.28,0.00010483,2]
[339638031,1727783440323,-150.0,0.00010678,2]
[339638032,1727783440332,-389.846033,0.00010892,2]
[339638033,1727783440342,-742.17369527,0.00010897,2]
[339638034,1727783440514,-746.65730324,0.00010897,2]
[339638035,1727783440524,-811.25189666,0.00010897,2]
[339638036,1727783440539,-1047.33577439,0.00010897,2]
[339638037,1727783440550,-1563.34488816,0.00010897,2]
[339638038,1727783440561,-544.42994079,0.00010897,2]
[339638039,1727783440571,-216.44552514,0.00010897,2]
[339638044,1727783443174,-3539.51887486,0.00010897,2]
[339638045,1727783443185,-255.0,0.00010898,2]
[339638046,1727783443194,-150.0,0.000109,2]
[339638047,1727783443205,-150.0,0.000109,2]
[339638048,1727783443215,-499.99,0.00010959,2]
[339638049,1727783443224,-299.99,0.00010959,2]
[339638050,1727783443234,-325.34,0.00010959,2]
[339638051,1727783443245,-837.53239758,0.00010997,2]
[339638052,1727783443257,-8722.80698925,0.00010997,2]
[339638053,1727783443267,-268905.24561869,0.00010997,2]
[339638054,1727783443276,-168.755,0.00010997,2]
[339638055,1727783443285,-376.21411348,0.00010998,2]
[339638056,1727783443294,-161113.35153864,0.00010999,2]
[339638057,1727783443306,-657.49378201,0.00010999,2]
[339638058,1727783443442,-5750.5391324,0.00010999,2]
[339638059,1727783443454,-5588.48944427,0.00010999,2]
[339638061,1727783446117,-2832.0099074,0.00010999,2]
[339638062,1727783481284,150.4,0.00021918,120]
[339638063,1727783516318,500.0,8.972e-05,2]
[339638064,1727783523807,201.22409973,0.00021999,120]
[339638065,1727783602616,1032.75,0.00021999,120]
[339638066,1727783851030,-150.0,0.00010019,2]
[339638067,1727783851565,-150.0,0.00010019,2]
[339638068,1727783918390,880.69,8.219e-05,2]
[339638069,1727784008575,150.0,0.0001,2]
[339638070,1727784008599,100.0,0.0001,2]
[339638071,1727784059698,150.0,9.988e-05,2]
[339638072,1727784059724,900.0,9.988e-05,2]
[339638074,1727784263524,150.0,9.994e-05,2]
[339638075,1727784263544,150.0,9.994e-05,2]
[339638076,1727784263564,150.0,9.994e-05,2]
[339638077,1727784263584,150.0,9.994e-05,2]
[339638078,1727784263604,150.0,9.994e-05,2]
[339638079,1727784263624,150.0,9.994e-05,2]
[339638080,1727784263646,100.0,9.994e-05,2]
[339638081,1727784292475,150.0,9.95e-05,2]
[339638082,1727784292499,105.52523652,9.95e-05,2]
[339638083,1727784314683,150.0,9.979e-05,2]
[339638084,1727784314706,8.45,9.979e-05,2]
[339638085,1727784348774,158.45,9.954e-05,2]
[339638086,1727784348805,150.0,9.954e-05,2]
[339638087,1727784348827,150.0,9.954e-05,2]
[339638088,1727784348849,65.56,9.954e-05,2]
[339638089,1727784349604,275.58,9.966e-05,2]
[339638090,1727784404887,-158.45,0.00010004,2]
[339638091,1727784463280,150.0,8.219e-05,2]
[339638092,1727784463303,150.0,8.219e-05,2]
[339638093,1727784463325,150.0,8.219e-05,2]
[339638094,1727784463345,150.0,8.219e-05,2]
[339638095,1727784463366,150.0,8.219e-05,2]
[339638096,1727784463387,86.65,8.219e-05,2]
[339638097,1727784494061,150.0,9.975e-05,2]
[339638098,1727784494085,100.0,9.975e-05,2]
[339638099,1727784584710,150.0,9.968e-05,2]
[339638100,1727784584733,150.0,9.968e-05,2]
[339638101,1727784597505,250.0,9.955e-05,2]
[339638111,1727784638331,-158.45,0.00010029,2]
[339638112,1727784638342,-600.0,0.00010068,2]
[339638113,1727784638352,-600.0,0.00010068,2]
[339638114,1727784638361,-315.05,0.00010145,2]
[339638115,1727784638371,-836.65,0.00010475,2]
[339638116,1727784638380,-205.94,0.00010495,2]
[339638117,1727784638390,-300.0,0.00010798,2]
[339638118,1727784638400,-907.78570114,0.00010799,2]
[339638119,1727784638697,-9092.21429886,0.00010799,2]
[339638120,1727784638706,-826.9230388,0.00010887,2]
[339638121,1727784638717,-25123.28513522,0.0001089,2]
[339638122,1727784638727,-150.0,0.00010896,2]
[339638123,1727784638737,-31114.854,0.00010897,2]
[339638124,1727784638746,-232582.2572,0.00010897,2]
[339638125,1727784638755,-235.26633892,0.00010897,2]
[339638126,1727784638766,-318.85595472,0.00010899,2]
[339638127,1727784638776,-10000.0,0.00010899,2]
[339638128,1727784638785,-159.53480384,0.00010899,2]
[339638129,1727784638794,-1268.5206126,0.00010899,2]
[339638130,1727784638803,-159.53480383,0.00010899,2]
[339638131,1727784638813,-159.53480383,0.00010899,2]
[339638132,1727784638822,-159.53480383,0.000109,2]
[339638133,1727784638831,-159.53480383,0.000109,2]
[339638134,1727784638841,-456.497,0.000109,2]
[339638135,1727784638852,-208.306,0.000109,2]
[339638136,1727784638861,-150.488,0.000109,2]
[339638137,1727784638871,-810.0,0.000109,2]
[339638138,1727784638880,-933.0,0.000109,2]
[339638139,1727784638890,-559.0,0.000109,2]
[339638140,1727784638899,-559.902,0.000109,2]
[339638141,1727784638908,-1905.0,0.000109,2]
[339638142,1727784638917,-807.0,0.000109,2]
[339638143,1727784638927,-1910.0,0.000109,2]
[339638144,1727784638936,-3350.0,0.000109,2]
[339638145,1727784638945,-50000.0,0.000109,2]
[339638146,1727784638955,-154.23122312,0.000109,2]
[339638147,1727784638964,-154.23122312,0.000109,2]
[339638148,1727784638973,-154.23122312,0.000109,2]
[339638149,1727784638982,-154.23122312,0.000109,2]
[339638150,1727784638991,-154.23122312,0.000109,2]
[339638151,1727784639001,-154.23122312,0.000109,2]
[339638152,1727784639010,-159.53480383,0.000109,2]
[339638153,1727784639019,-1042.0,0.000109,2]
[339638154,1727784639028,-150.0,0.000109,2]
[339638155,1727784639037,-13504.0,0.000109,2]
[339638156,1727784639046,-5873.0,0.000109,2]
[339638157,1727784639055,-1148.0,0.000109,2]
[339638158,1727784639064,-239.583,0.00010916,2]
[339638159,1727784639073,-160.078,0.00010918,2]
[339638160,1727784639082,-162.61,0.00010959,2]
[339638161,1727784639094,-260.27,0.00010959,2]
[339638162,1727784639107,-1253.74,0.00010959,2]
[339638163,1727784639116,-2000.0,0.00010959,2]
[339638164,1727784639126,-331.68886943,0.00010973,2]
[339638165,1727784639136,-500.0,0.00010973,2]
[339638166,1727784639146,-17094.9443871,0.00010992,2]
[339638167,1727784639155,-500.0,0.00010996,2]
[339638168,1727784639165,-500.0,0.00010996,2]
[339638169,1727784639174,-500.0,0.00010996,2]
[339638170,1727784639183,-500.0,0.00010996,2]
[339638171,1727784639193,-380.96453653,0.00010996,2]
[339638172,1727784639202,-500.0,0.00010996,2]
[339638173,1727784639211,-320.10717072,0.00010996,2]
[339638174,1727784639220,-186151.60970767,0.00010996,2]
[339638175,1727784639229,-321807.70847847,0.00010997,2]
[339638176,1727784639239,-500.0,0.00010997,2]
[339638177,1727784639248,-500.0,0.00010997,2]
[339638178,1727784639257,-500.0,0.00010998,2]
[339638179,1727784639266,-281.62568554,0.00010998,2]
[339638180,1727784639277,-151.01097612,0.00010998,2]
[339638181,1727784639287,-615.0,0.00010999,2]
[339638182,1727784639296,-192.80242668,0.00010999,2]
[339638183,1727784639306,-2444754.05452383,0.00010999,2]
[339638184,1727784640361,-54764.66971007,0.00010999,2]
[339638185,1727784640430,-20453.58063277,0.00010999,2]
[339638186,1727784640537,-1277.545,0.00010999,2]
[339638188,1727784643369,-146362.93940113,0.00010999,2]
[339638190,1727784643422,-7864.076,0.00010999,2]
[339638191,1727784643740,-346.15441937,0.00010999,2]
[339638192,1727784643753,-5163.822227,0.00010999,2]
[339638218,1727784646364,-1586.930136,0.0001045,2]
[339638219,1727784646373,-1082.0,0.000109,2]
[339638220,1727784646383,-554.0,0.00010999,2]
[339638221,1727784646394,-148172.54386398,0.00010999,2]
[339638222,1727784646420,-191617.73879714,0.00010999,2]
[339638223,1727784646473,-3275.25,0.00010999,2]
[339638224,1727784681826,150.0,8.972e-05,2]
[339638225,1727784681848,150.0,8.972e-05,2]
[339638226,1727784681876,150.0,8.972e-05,2]
[339638227,1727784681899,50.0,8.972e-05,2]
[339638228,1727784695785,1439.3114846,0.00022,120]
[339638231,1727784780867,501.17397598,0.00021999,120]
[339638234,1727784795367,150.0,8.9e-05,2]
[339638235,1727784795389,150.0,8.9e-05,2]
[339638236,1727784795411,150.0,8.9e-05,2]
[339638237,1727784795433,50.0,8.9e-05,2]
[339638241,1727785038885,150.0,8.219e-05,2]
[339638242,1727785038906,150.0,8.219e-05,2]
[339638243,1727785038926,150.0,8.219e-05,2]
[339638244,1727785038946,150.0,8.219e-05,2]
[339638245,1727785038966,150.0,8.219e-05,2]
[339638246,1727785038986,2.98,8.219e-05,2]
[339638247,1727785119126,250.0,9.938e-05,2]
[339638248,1727785213991,250.0,9.951e-05,2]
[339638249,1727785267866,-198.07,0.00010004,2]
[339638250,1727785267897,-198.07,0.00010054,2]
[339638251,1727785267926,-600.0,0.00010068,2]
[339638252,1727785267955,-430.03,0.00010106,2]
[339638253,1727785267985,-582.58,0.00010125,2]
[339638254,1727785268015,-200.0,0.00010144,2]
[339638255,1727785268043,-150.0,0.000102,2]
[339638256,1727785268071,-752.98,0.00010474,2]
[339638257,1727785268099,-3657.48913111,0.00010899,2]
[339638258,1727785268125,-2823.70113597,0.00010899,2]
[339638259,1727785268152,-3657.48913102,0.00010899,2]
[339638260,1727785268179,-3657.48913102,0.00010899,2]
[339638261,1727785268205,-3657.48913102,0.00010899,2]
[339638262,1727785268231,-3657.48913102,0.00010899,2]
[339638263,1727785268257,-2823.70113597,0.000109,2]
[339638264,1727785268283,-3657.48913102,0.000109,2]
[339638265,1727785268310,-3657.48913102,0.000109,2]
[339638266,1727785268337,-3657.48913102,0.000109,2]
[339638267,1727785268364,-3657.48913102,0.000109,2]
[339638268,1727785268391,-3657.48913102,0.000109,2]
[339638269,1727785268417,-2823.70113597,0.000109,2]
[339638270,1727785268442,-160.07912929,0.00010918,2]
[339638271,1727785268469,-321.756,0.00010925,2]
[339638272,1727785268496,-172.84,0.00010959,2]
[339638273,1727785268522,-600.45,0.00010959,2]
[339638274,1727785268548,-500.0,0.00010959,2]
[339638275,1727785268574,-500.0,0.00010973,2]
[339638276,1727785268600,-17431.3459805,0.00010992,2]
[339638277,1727785268626,-3873.2450769,0.00010992,2]
[339638278,1727785268652,-28282.55909511,0.00010992,2]
[339638279,1727785326981,-600.0,0.00010068,2]
[339638280,1727785327007,-208.21,0.00010959,2]
[339638281,1727785327034,-6961.0330342,0.00010992,2]
[339638282,1727785327060,-46896.93312033,0.00010992,2]
[339638283,1727785327086,-164.976052,0.00010997,2]
[339638284,1727785327113,-164.976052,0.00010997,2]
[339638285,1727785327141,-1659.82943714,0.00010998,2]
[339638286,1727785327168,-500.0,0.00010998,2]
[339638287,1727785327195,-280.77797937,0.00010998,2]
[339638288,1727785327220,-202.09707073,0.00010999,2]
[339638289,1727785327249,-76794.16725423,0.00010999,2]
[339638290,1727785520182,150.0,9.888e-05,2]
[339638291,1727785520203,0.09114238,9.888e-05,2]
[339638292,1727785527810,150.0,9.888e-05,2]
[339638293,1727785533367,150.0,9.888e-05,2]
[339638294,1727785554513,150.0,6.94e-05,2]
[339638295,1727785554536,150.0,6.94e-05,2]
[339638296,1727785598246,150.0,0.0001,2]
[339638297,1727785675639,150.0,0.0001,2]
[339638298,1727785675662,150.0,0.0001,2]
[339638299,1727785675684,150.0,0.0001,2]
[339638300,1727785675713,150.0,0.0001,2]
[339638301,1727785675735,150.0,0.0001,2]
[339638302,1727785675756,438.51199901,0.0001,2]
[339638303,1727785679557,150.0,8.219e-05,2]
[339638304,1727785679579,150.0,8.219e-05,2]
[339638305,1727785679601,150.0,8.219e-05,2]
[339638306,1727785679623,150.0,8.219e-05,2]
[339638307,1727785679645,77.68,8.219e-05,2]
[339638323,1727785827542,150.0,9.951e-05,2]
[339638324,1727785827562,50.0,9.951e-05,2]
[339638343,1727785831708,-150.0,0.00010059,2]
[339638344,1727785831718,-250.0,0.00010331,2]
[339638345,1727785831727,-250.0,0.00010338,2]
[339638346,1727785831737,-250.0,0.00010345,2]
[339638347,1727785831747,-252.04,0.00010431,2]
[339638348,1727785831757,-411.0642954,0.00010445,2]
[339638350,1727785837699,-428.9357046,0.00010445,2]
[339638351,1727785837708,-163.69,0.0001045,2]
[339638352,1727785837718,-163.69,0.00010457,2]
[339638353,1727785837727,-163.69,0.00010463,2]
[339638354,1727785837736,-163.69,0.0001047,2]
[339638355,1727785837745,-291.29,0.0001047,2]
[339638356,1727785837755,-163.69,0.00010476,2]
[339638357,1727785837764,-677.68,0.00010482,2]
[339638358,1727785837772,-163.69,0.00010483,2]
[339638359,1727785837781,-163.69,0.00010489,2]
[339638360,1727785837791,-163.69,0.00010496,2]
[339638361,1727785837803,-163.69,0.00010502,2]
[339638362,1727785837812,-4675.6967799,0.00010992,2]
[339638363,1727785837821,-3140.5932757,0.00010992,2]
[339638364,1727785837830,-414.95735928,0.00010998,2]
[339638367,1727785837840,-3972.26975121,0.00010998,2]
[339638368,1727785838023,-553.0,0.00010999,2]
[339638369,1727785838033,-161.67765658,0.00010999,2]
[339638370,1727785838042,-173339.92543478,0.00010999,2]
[339638371,1727785838051,-756773.15967141,0.00010999,2]
[339638372,1727785838063,-1147347.01545081,0.00010999,2]
[339638373,1727785838074,-3411.905598,0.00010999,2]
[339638374,1727785838089,-476.290033,0.00010999,2]
[339638404,1727785842733,-9578.34572329,0.00010999,2]
[339638407,1727785845987,-3185.42260858,0.00010999,2]
[339638411,1727785906770,500.0,8.972e-05,2]
[339638412,1727786240390,150.0,8.296e-05,2]
[339638413,1727786240411,150.0,8.296e-05,2]
[339638414,1727786240431,150.0,8.296e-05,2]
[339638415,1727786240452,150.0,8.296e-05,2]
[339638416,1727786240472,57.43,8.296e-05,2]
[339638420,1727786792176,291.29,9.974e-05,2]
[339638421,1727786808113,633.02,8.219e-05,2]
[339638422,1727786869746,150.0,0.0001,2]
[339638423,1727786869768,66.81391283,0.0001,2]
[339638424,1727786894479,259.136368,0.00021999,120]
[339638425,1727786894791,259.136368,0.00021999,120]
[339638426,1727786895116,259.136368,0.00021999,120]
[339638427,1727786895451,259.136368,0.00021999,120]
[339638428,1727786895765,259.136368,0.00021999,120]
[339638429,1727786896087,259.136368,0.00021999,120]
[339638430,1727786896427,259.136368,0.00021999,120]
[339638431,1727786896726,259.136368,0.00021999,120]
[339638432,1727786897036,259.136368,0.00021999,120]
[339638433,1727786898679,503.12838264,0.00021999,120]
[339638434,1727786898758,171.381617,0.00021999,120]
[339638435,1727786899050,171.381617,0.00021999,120]
[339638436,1727786899378,171.381617,0.00021999,120]
[339638437,1727786899665,171.381617,0.00021999,120]
[339638438,1727786899986,171.381617,0.00021999,120]
[339638439,1727786900434,171.381617,0.00021999,120]
[339638440,1727786900801,171.381617,0.00021999,120]
[339638441,1727786910658,504.25551066,0.00021999,120]
[339638442,1727786911020,150.0,0.00020386,120]
[339638443,1727786912729,503.45705249,0.00021999,120]
[339638444,1727786925344,298.279362,0.00021999,120]
[339638445,1727786929455,500.0,0.00021999,120]
[339638446,1727786929799,500.0,0.00021999,120]
[339638447,1727786930058,500.0,0.00021999,120]
[339638448,1727786930305,505.53079861,0.00021999,120]
[339638449,1727786933922,-152.0,0.00015266,31]
[339638450,1727786933946,-152.0,0.00015333,32]
[339638451,1727786933970,-152.0,0.000154,33]
[339638452,1727786933993,-152.0,0.00015467,34]
[339638453,1727786934016,-152.0,0.00015534,35]